Cogmind - Beta 17.1 @@@ ROGUE MODE // 2026.08.28 @ 13:07:57 Player: jat Result: Destroyed by G-47 Trooper with Particle Gun Performance ------------- Evolutions (2) 1000 Regions Visited (4) 800 Robots Destroyed (41) 205 Value Destroyed (914) 914 Prototype IDs (1) 20 Alien Tech Used (0) 0 Bonus (12) 12 TOTAL SCORE: 2951 Bonus ------- High Alert Combat Kills 12 Cogmind --------- Core Integrity 0/550 Matter 300/300 Energy 248/250 System Corruption 4% Temperature Cool (9) Movement Walking (120) Location -8/Materials Parts ------- > --- POWER (2) -------- (None) > --- PROPULSION (3) --- Carbon-fiber Leg > --- UTILITY (4) ------ Medium Battery Targeting Computer > --- WEAPON (2) ------- Blade Saw > --- INVENTORY (5) ---- Heavy Ion Engine Particle Gun Assault Rifle Assault Rifle Light Assault Rifle Peak State ------------ > --- POWER ------------ Light Ion Engine > --- PROPULSION ------- Carbon-fiber Leg Surge Thruster Surge Thruster > --- UTILITY ---------- Medium Battery Improved Signal Interpreter Targeting Computer Improved Light Armor Plating > --- WEAPON ----------- High-powered Shotgun Blade Saw > --- INVENTORY -------- Heavy Ion Engine Particle Gun Assault Rifle Assault Rifle Light Assault Rifle [Rating: 24] Favorites ----------- Power Light Ion Engine Engine Light Ion Engine Propulsion Flight Unit Treads Light Treads Leg Aluminum Leg Hover Unit Combat Airjet Flight Unit Flight Unit Utility Heat Sink Device Heat Sink Storage Medium Battery Processor Targeting Computer Protection Improved Light Armor Plating Weapon Improved Light Cannon Energy Gun Medium Laser Ballistic Gun Light Assault Rifle Ballistic Cannon Improved Light Cannon Launcher Rocket Launcher Slashing Weapon Blade Saw Build | -11 -10 -10 -9 -8 ------- Run | Yrd Mat Min Mat Mat Slots Evolved 4 | . . . 2 2 Power 1 | . . . . 1 Propulsion 1 | . . . 1 . Utility 2 | . . . 1 1 Weapon . | . . . . . Parts Attached 45 | 6 5 7 8 19 Power 8 | 1 1 2 1 3 Engine 8 | 1 1 2 1 3 Core . | . . . . . Reactor . | . . . . . Propulsion 14 | 2 2 3 3 4 Treads 1 | . . . . 1 Leg 3 | 2 . . . 1 Wheel . | . . . . . Hover 3 | . . 1 2 . Flight 7 | . 2 2 1 2 Utility 11 | 1 1 2 2 5 Device 4 | . 1 2 1 . Storage 3 | 1 . . . 2 Processor 2 | . . . 1 1 Hackware . | . . . . . Protection 2 | . . . . 2 Artifact . | . . . . . Weapon 12 | 2 1 . 2 7 Energy Gun 4 | 1 1 . . 2 Energy Cannon . | . . . . . Ballistic Gun 4 | 1 . . . 3 Ballistic Cannon 2 | . . . 2 . Launcher 1 | . . . . 1 Special Weapon . | . . . . . Impact Weapon . | . . . . . Slashing Weapon 1 | . . . . 1 Piercing Weapon . | . . . . . Special Melee Weapon . | . . . . . Unidentified Prototypes 1 | . . . 1 . Parts Lost 18 | . . 2 1 15 Power 3 | . . 1 . 2 Propulsion 6 | . . 1 1 4 Utility 4 | . . . . 4 Weapon 5 | . . . . 5 Highest Loss Streak 7 | . . 2 1 7 To Critical Strikes . | . . . . . Average Backups 4 | 2 3 4 4 4 Power 1 | . 1 . 1 1 Propulsion . | . 1 . . . Utility 1 | . . 2 2 1 Weapon 1 | . 1 1 1 1 Tool/Special . | . . . . . Unused Backups 7 | . 2 2 . 3 Power 2 | . 1 1 . . Propulsion . | . . . . . Utility . | . . . . . Weapon 5 | . 1 1 . 3 Tool/Special . | . . . . . Average Slot Usage (%) 75 | . 78 91 80 63 Engine 10 | . 14 13 11 7 Leg 2 | . 11 . . 2 Hover 8 | . . . 20 6 Flight 11 | . 16 27 8 5 Device 11 | . 1 21 17 4 Storage 3 | . 5 . . 6 Processor 4 | . . . . 11 Protection 1 | . . . . 3 Energy Gun 5 | . 14 14 . 2 Ballistic Gun 6 | . 14 14 . 4 Ballistic Cannon 7 | . . . 20 3 Slashing Weapon 1 | . . . . 3 Peak Build Rating 24 | 6 6 11 18 24 Average Rating 12 | 3 5 6 15 16 On Entrance 7 | . 6 6 8 17 Avg Prop Armor Cover (%) 7 | . . . 6 8 Naked Turns . | . . . . . Heaviest Build 26 | 13 13 8 18 26 Greatest Support 25 | 20 20 8 25 20 Greatest Overweight (x) 1 | . . . . 1 Average Overweight (x) . | . . . . . Largest Inventory Capacity 8 | 8 8 5 5 5 Average Capacity 5 | 6 6 5 5 5 Most Carried 5 | 4 5 5 5 5 Average Carried 4 | 1 3 4 4 4 Final Capacity 8 | 8 5 5 5 5 Final Carried 5 | 2 5 5 5 5 Class Distribution -------------------- 51% | Mutant 48% | Scavenger-Mutant Dominant Class ---------------- Mutant | -10/Materials Mutant | -10/Mines Scavenger-Mutant | -9/Materials Mutant | -8/Materials Resources | -11 -10 -10 -9 -8 ----------- Run | Yrd Mat Min Mat Mat Matter Collected 1188 | . 71 343 399 375 Remotely 143 | . . 143 . . Salvage Created 885 | . 71 142 380 292 Parts 62 | . 7 8 32 15 Haulers Intercepted . | . . . . . Recyclers Shooed 1 | . . . 1 . Parts Field Recycled . | . . . . . Retrieved Matter . | . . . . . Parts Self-Destructed . | . . . . . Prevented . | . . . . . Parts Restored . | . . . . . Kills | -11 -10 -10 -9 -8 ------- Run | Yrd Mat Min Mat Mat Combat Hostiles Destroyed 37 | . 3 5 18 11 Guns 14 | . 3 5 . 6 Cannons 22 | . . . 18 4 AOE 1 | . . . . 1 Classes Destroyed 8 | . 2 . 3 3 Worker 2 | . . . 2 . Watcher 2 | . . . 2 . Swarmer 20 | . 2 3 11 4 Cutter 2 | . . . . 2 Grunt 9 | . 1 2 4 2 Duelist 1 | . . . . 1 Sentry 4 | . . . 3 1 Heavy 1 | . . . . 1 Best Kill Streak 12 | . 2 3 12 4 Combat Bots Only 11 | . 2 3 11 4 Max Kills in Single Turn 2 | . 1 1 2 2 Gunslinging . | . . . . . Exploded 1 | . . . . 1 Melee . | . . . . . Uniques/NPCs Destroyed . | . . . . . Combat | -11 -10 -10 -9 -8 -------- Run | Yrd Mat Min Mat Mat Hostile Shots Fired 224 | . 13 30 62 119 Missed 69 | . 6 11 21 31 Hits 155 | . 7 19 41 88 Melee 19 | . . . . 19 Projectile 136 | . 7 19 41 69 AOE 4 | . . 2 . 2 Critical Strikes 11 | . . 1 1 9 Damage Taken 2631 | . 64 269 411 1887 Core 726 | . 10 94 64 558 Absorbed by Shields . | . . . . . Core Remaining (%) 80 | 100 . 58 84 . Volleys Fired 100 | . 7 19 36 38 Largest 2 | . 2 2 2 2 Hottest 83 | . 60 70 66 83 Shots Fired 171 | . 14 38 72 47 Gun 86 | . 14 38 . 34 Cannon 84 | . . . 72 12 Launcher 1 | . . . . 1 Special . | . . . . . Kinetic 132 | . 7 19 72 34 Thermal 19 | . . 19 . . Explosive 1 | . . . . 1 Electromagnetic 19 | . 7 . . 12 Robot Hit Streak 10 | . 4 10 5 8 Robot Miss Streak 5 | . 3 4 4 5 Penetration Max . | . . . . . Secondary Targets 1 | . . 1 . . Max Gunslinging Chain 1 | . . 1 . . Shots Hit Robots 102 | . 7 26 36 33 Core Hits 59 | . 4 10 23 22 Critical Kills . | . . . . . Critical Parts Destroyed 1 | . 1 . . . Critical Strikes 7 | . 1 3 3 . Burn 3 | . . 3 . . Destroy 1 | . 1 . . . Blast 3 | . . . 3 . Melee Attacks 2 | . . . . 2 Impact . | . . . . . Slashing 2 | . . . . 2 Piercing . | . . . . . Sneak Attacks . | . . . . . Combat Hostiles . | . . . . . Follow-up Attacks . | . . . . . Damage Inflicted 2013 | . 93 270 855 795 Guns 833 | . 86 270 . 477 Cannons 1041 | . . . 855 186 Explosions 132 | . . . . 132 Melee . | . . . . . Ramming 7 | . 7 . . . Kinetic 1513 | . 32 106 855 520 Thermal 164 | . . 164 . . Explosive 132 | . . . . 132 Electromagnetic 197 | . 54 . . 143 Impact . | . . . . . Slashing . | . . . . . Piercing . | . . . . . Highest Corruption 4 | . . . . 4 Average Corruption 4 | . . . . 4 Corruption Purged . | . . . . . Corruption Blocked . | . . . . . Effects 1 | . . . . 1 Message Errors 1 | . . . . 1 Overload Shots . | . . . . . Overflow Damage 12 | . . . 12 . Projectiles 12 | . . . 12 . Explosions . | . . . . . Melee . | . . . . . Knockbacks 14 | . . . 13 1 Impact . | . . . . . Kinetic 11 | . . . 10 1 Secondary 3 | . . . 3 . Self-Inflicted Damage . | . . . . . Shots . | . . . . . Rammed 1 | . . . 1 . Targets Rammed 2 | . 1 . 1 . Kicked 1 | . 1 . . . Crushed . | . . . . . Highest Temperature 80 | . 80 41 9 18 Average Temperature 18 | . 28 15 6 18 Received Heat Transfer 462 | . 18 87 78 279 Siege Activations . | . . . . . Martial Activations . | . . . . . Shielding Activations . | . . . . . Robots Disrupted . | . . . . . Combat Hostiles . | . . . . . Robots Corrupted . | . . . . . Combat Hostiles . | . . . . . Parts Fried 1 | . . . . 1 Impact Corruptions . | . . . . . Robots Melted . | . . . . . Combat Hostiles . | . . . . . Parts Melted 2 | . . 2 . . Heat Transferred 703 | . . 703 . . Parts Sabotaged . | . . . . . Parts Stolen . | . . . . . Parts Stripped . | . . . . . Power Chain Reactions . | . . . . . Alert | -11 -10 -10 -9 -8 ------- Run | Yrd Mat Min Mat Mat Maximum Alert Level 2 | . . . 2 1 Low Security (%) 73 | 100 100 100 29 85 Level 1 17 | . . . 41 14 Level 2 8 | . . . 29 . Level 3 . | . . . . . Level 4 . | . . . . . Level 5 . | . . . . . High Security . | . . . . . Max Security . | . . . . . Peak Influence 439 | . 75 75 439 224 Initial 174 | . . 16 25 174 Average 147 | . 39 26 257 166 Influence Increases 1127 | . 103 135 564 325 Destroy 0b10 Robot/C 740 | . 60 100 360 220 Destroy 0b10 Robot/NC 20 | . . . 20 . Destroy Leader 164 | . 20 20 74 50 Successful Hack 8 | . 8 . . . Destroy Structure 15 | . . . 5 10 Partial Spotted 30 | . . . 30 . Lose Combat Pursuer 150 | . 15 15 75 45 Influence Decreases 992 | . 60 113 215 604 Entered New Map 307 | . . 27 40 240 Time Decay 525 | . 60 86 165 214 Lost Part 160 | . . . 10 150 Squads Dispatched 8 | . 2 . . 6 Investigation . | . . . . . Extermination . | . . . . . Reinforcement 5 | . 2 . . 3 Assault . | . . . . . Garrison 3 | . . . . 3 Intercept . | . . . . . Searches Triggered . | . . . . . Construction Impeded . | . . . . . Haulers Reinforced . | . . . . . Active Scanning Responses . | . . . . . Cargo Convoy Interrupts . | . . . . . Stealth | -11 -10 -10 -9 -8 --------- Run | Yrd Mat Min Mat Mat Distress Signals 6 | . . . 2 4 Communications Jammed . | . . . . . Distress Signals . | . . . . . Times Spotted 58 | . 8 8 26 16 Peak Tracking Total 13 | . 3 3 13 4 Tactical Retreats 7 | . 1 1 2 3 Traps | -11 -10 -10 -9 -8 ------- Run | Yrd Mat Min Mat Mat Traps Triggered 1 | . 1 . . . Indirectly . | . . . . . Trap Hack Attempts . | . . . . . Triggered . | . . . . . Disarmed . | . . . . . Reprogrammed . | . . . . . Reused . | . . . . . Traps Extracted . | . . . . . Installed . | . . . . . Triggered . | . . . . . Machines | -11 -10 -10 -9 -8 ---------- Run | Yrd Mat Min Mat Mat Machines Disabled . | . . . . . Max in Single Turn . | . . . . . Machines Repaired . | . . . . . Machines Dismantled . | . . . . . Machines Sabotaged . | . . . . . Overloaded Fab Kills . | . . . . . Hacking | -11 -10 -10 -9 -8 --------- Run | Yrd Mat Min Mat Mat Machines Accessed 4 | . 3 . . 1 Terminals 3 | . 3 . . . Fabricators . | . . . . . Repair Stations . | . . . . . Recycling Units . | . . . . . Scanalyzers 1 | . . . . 1 Garrison Access . | . . . . . Total Hacks 12 | . 9 . . 3 Successful 5 | . 3 . . 2 Failed 6 | . 6 . . . Catastrophic . | . . . . . Database Lockouts 1 | . . . . 1 Manual . | . . . . . Terminals 9 | . 9 . . . Fabricators . | . . . . . Repair Stations . | . . . . . Recycling Units . | . . . . . Scanalyzers 3 | . . . . 3 Garrison Access . | . . . . . Terminal Hacks 3 | . 3 . . . Emergency Access Points 1 | . 1 . . . Locate Traps 2 | . 2 . . . Fabricator Hacks . | . . . . . Repair Station Hacks . | . . . . . Recycling Unit Hacks . | . . . . . Scanalyzer 2 | . . . . 2 Retrieve Study 2 | . . . . 2 Garrison Access Hacks . | . . . . . Unauthorized Hacks . | . . . . . Terminals . | . . . . . Fabricators . | . . . . . Repair Stations . | . . . . . Recycling Units . | . . . . . Scanalyzers . | . . . . . Garrison Access . | . . . . . Data Cores Recovered . | . . . . . Used . | . . . . . Hacking Detections 3 | . 2 . . 1 Full Trace Events . | . . . . . Feedback Events . | . . . . . Feedback Blocked . | . . . . . Robot Schematics Acquired . | . . . . . Robots Built . | . . . . . Authchips . | . . . . . Time . | . . . . . Total Robot Build Rating . | . . . . . Part Schematics Acquired . | . . . . . Parts Built . | . . . . . Authchips . | . . . . . Time . | . . . . . Total Part Build Rating . | . . . . . Part Studies Acquired 1 | . . . . 1 Parts Repaired . | . . . . . Time . | . . . . . Parts Recycled . | . . . . . Recycled Matter . | . . . . . Retrieved Matter . | . . . . . Retrieved Components . | . . . . . Parts Scanalyzed . | . . . . . Part Schematics Acquired . | . . . . . Parts Damaged . | . . . . . Bothacking | -11 -10 -10 -9 -8 ------------ Run | Yrd Mat Min Mat Mat Used RIF Installer . | . . . . . Robots Hacked . | . . . . . Non-combat . | . . . . . Combat . | . . . . . Robot Hacks Applied . | . . . . . Relay Couplers Released . | . . . . . Fabnet Peak Effective % . | . . . . . Robots Rewired . | . . . . . Allies Hacked . | . . . . . Hacks Repelled . | . . . . . Allies | -11 -10 -10 -9 -8 -------- Run | Yrd Mat Min Mat Mat Total Allies . | . . . . . Largest Group . | . . . . . Highest-Rated Group . | . . . . . Highest-Rated Ally . | . . . . . Total Orders . | . . . . . Ally Attacks . | . . . . . Total Damage . | . . . . . Kills . | . . . . . Allies Corrupted . | . . . . . Allies Melted . | . . . . . Intel | -11 -10 -10 -9 -8 ------- Run | Yrd Mat Min Mat Mat Active Infowar (turns) 496 | . . 47 371 78 Seismic 496 | . . 47 371 78 Robot Analysis Total . | . . . . . Derelict Logs Recovered 1 | . . 1 . . Drone Launches . | . . . . . Drone Recoveries . | . . . . . Exploration | -11 -10 -10 -9 -8 ------------- Run | Yrd Mat Min Mat Mat Turns Passed 1238 | 49 164 204 371 450 Spaces Moved 1253 | 37 228 351 371 266 Core 41 | 12 . . . 29 Treads 34 | . . . . 34 Legs 145 | 25 43 . . 77 Wheels . | . . . . . Hover 453 | . . . 334 119 Flight 580 | . 185 351 37 7 Fastest Speed 32 | 50 37 37 34 32 Average Speed 63 | 97 52 37 62 103 Slowest Speed 240 | 120 120 37 80 240 Overloaded Moves . | . . . . . Propulsion Burnouts . | . . . . . Robots Hopped 4 | . 1 3 . . Potential Cave-ins . | . . . . . Cave-ins Triggered 1 | . . . . 1 Exploration Rate (%) 27 | 3 45 51 30 9 Regions Visited 4 Branch Regions 1 Pre-discovered Areas . | . . . . . Known Exits Taken . | . . . . . Unknown Exits Taken 4 | 1 1 1 1 . Scrap Searched 1 | . . 1 . . Spaces Dug . | . . . . . Terrain Destroyed 13 | . . . 3 10 Melee . | . . . . . Projectile 4 | . . . 3 1 AOE 9 | . . . . 9 Terrain Rammed . | . . . . . Walls Destroyed . | . . . . . Machines Disabled . | . . . . . Actions | -11 -10 -10 -9 -8 --------- Run | Yrd Mat Min Mat Mat Total 1522 | 50 259 388 438 387 Wait 50 | . . 4 10 36 Move 1241 | 36 225 344 370 266 Hop 4 | . 1 3 . . Pick Up 41 | 8 10 5 5 13 Fast Attach 17 | . 3 1 4 9 Attach 27 | 6 1 3 2 15 Detach 2 | . . . . 2 Swap 12 | . 3 4 3 2 Drop 24 | . 8 5 7 4 Fire 100 | . 7 19 36 38 Melee 2 | . . . . 2 Ram 1 | . . . 1 . Kick 1 | . 1 . . . Crush . | . . . . . Escape Stasis . | . . . . . Rewire . | . . . . . Trap . | . . . . . Miscellaneous . | . . . . . Route ------- -11/Scrapyard -10/Materials -10/Mines -9/Materials (discovered 2 exits: *Mat / [*Min]) -8/Materials History --------- Turn | Location | Event 8 | -11/Scrapyard | Discovered new exit (range 15) 50 | -11/Scrapyard | Entered Materials 202 | -10/Materials | Discovered new exit (range 10) 214 | -10/Materials | Entered Mines 220 | -10/Mines | Discovered new exit (range 12) 227 | -10/Mines | Received a Rocket Launcher from a helpful Derelict 324 | -10/Mines | Assembled infested the area 325 | -10/Mines | Build established: Mutant 329 | -10/Mines | Assisted by a Guerilla fighting off Assembled 329 | -10/Mines | Learned Materials stockpile data 418 | -10/Mines | Entered Materials 418 | -9/Materials | Evolved 2 slots: Propulsion x1, Utility x1 463 | -9/Materials | Discovered new exit (range 16) 568 | -9/Materials | Destroyed 11 combat bots 776 | -9/Materials | Discovered new exit (range 4) 789 | -9/Materials | Entered another Materials area 789 | -8/Materials | Evolved 2 slots: Power x1, Utility x1 797 | -8/Materials | Central database locked down 887 | -8/Materials | Garrison activated, responded to threat 958 | -8/Materials | Lost 7 parts (1p1n2u3w) 1060 | -8/Materials | Core integrity fell below 50% 1211 | -8/Materials | Crushed by falling debris 1211 | -8/Materials | Core integrity fell below 20% 1239 | -8/Materials | Destroyed by G-47 Trooper with Particle Gun Last Messages --------------- 01215_ U-05 Engineer builds a Wall. 01219_ NAYXZKJBSL0%LJC>MN2DMBMPQJ4ZHR 01226_ H-61 Shepherd destroyed. 01226_ K-01 Serf collects debris. 01226_ K-01 Serf destroyed. 01228_ Hpw. Shotgun destroyed. 01230_ K-01 Serf collects debris. 01231_ K-01 Serf destroyed. 01233_ Acquired 6 matter. 01234_ K-01 Serf collects debris. Disabling or destroying stationary machines or terrain requires that a single hit meet or exceed the object's Armor value. Inspect machines by right-clicking on them, and walls via Ctrl-RMB (or as any other object in Keyboard Mode). Hovering the cursor over an object also shows its Armor in the Scan window. 01237_ K-01 Serf collects debris. 01238_ Surge Thruster destroyed. Map ----- +----------------------------------------------------+ | ????????????????????????????????????? | | ????????????????????????????????????? | | ????????????????????????????????????? | | ??????????????????????????##########? | | ??????????????????????##### ! ! #? | | ??????????????????????# # [ ! #? | | ??????????????????????# # #? | | ??????????????????????# # [ #? | | ??????????????????????# + #? | | ??????????????????????# # "" #? | | ?????????????????###### # """#? | | ?????????????????# # u # S"#? | | ?????????????????# # # #? | | ?????????????????# # ########### | | ?????????????????# # # # | | ?????????????????# + + # | | ?????????????????# # # # | | ?????????????????# # # # | | ?????????????????# # u ########### | | ?????????????????# # u##########? | | ?????????????????###### # #? | | ??????????#####???##### u# % #? | | ??????????# % #######!% # #? | | ??????????# =g # #? | | ??????????# k*%+ #? | | ??????????# % g@!% #? | | ??????????# #########!!* #? | | ??????????## ???### ##%#= #? | | ???????????# ?????? ###=# #? | | ???????????#??????""" ??# ##########? | | ???????????????? """ ??# #?????????? | | ???????????????# """ ??# #?????????? | | ???????????????#! ?? #?????????? | | ????????????????? ! ?? ##?????????? | | ?????????????????#####?? ???????????? | | ???????????????????????? ???????????? | | ???????????????????????? ???????????? | | ???????????????????????? ???????????? | | ???????????????????????? ???????????? | | ???????????????????????? ???????????? | | ???????????????????????? ???????????? | | ????????????????????????????????????? | | ????????????????????????????????????? | | ????????????????????????????????????? | | ????????????????????????????????????? | | ????????????????????????????????????? | | ????????????????????????????????????? | | ????????????????????????????????????? | | ????????????????????????????????????? | | ????????????????????????????????????? | +----------------------------------------------------+ Best States ------------- Heat Dissipation 41 Energy Generation 14 Energy Capacity 430 Matter Stores 382 Matter Capacity 450 Sight Range 16 Terrain Scan Density 10 Armor Coverage 225 Evasion (%) 63 Targeting Accuracy 5 Recoil Reduction 1 Item Schematics ----------------- None Robot Schematics ------------------ None Fabricated ------------ Nothing Repaired ---------- Nothing Studied --------- Hover Unit | -8/Materials | Hacked Alien Tech Used ----------------- None Achievements -------------- None Challenges ------------ None Game ------ Seed SingularityGunJetlance Manual? 0 Play Time 00:28:17 Cumulative 20.8 hours Start 2026.08.28 @ 09:32:06 End 2026.08.28 @ 13:07:57 Sessions 1 Manual Loads 0 Difficulty Rogue Special Mode None Game No. 27 Rogue 22 Adventurer 5 Explorer 0 Win Type - Total 0 Types 0/0/0/0/0/0/0/0/0/0 Lore% 17 Gallery% 22 Achievement% 21 Wizard Run 0 Options --------- Layout 1 ASCII 0 Keyboard 0 Movement Mouse Keybinds 0 Fullscreen 2 Font 24/Smallcaps Map View 50x35 Zoom Use 0% Tactical HUD 1 Map Filters NONE Filters NONE Steam 1 RUN: fd85dab9-107a-463b-af24-6d755fc5cdde